bitfinex-derivatives/quotes_BNBF0:USTF0_20251027
["timestamp","ask_amount","ask_price","bid_price","bid_amount"]
[1761580427758,0.65378283,1142.8,1142.2,0.661]
[1761580428760,0.65378283,1142.9,1142.2,0.661]
[1761580430860,0.65378283,1143.1,1142.2,0.661]
[1761580431358,0.65378283,1143.0,1142.2,0.661]
[1761580435262,0.65378283,1142.7,1142.2,0.661]
[1761580440066,0.65378283,1142.4,1142.2,0.661]
[1761580440263,0.65378283,1142.3,1142.2,0.661]
[1761580440469,0.65378283,1142.3,1142.0,0.7]
[1761580445072,0.65378283,1142.1,1142.0,0.7]
[1761580446275,0.65378283,1142.2,1142.0,0.7]
[1761580450781,0.65378283,1142.3,1142.0,0.7]
[1761580453988,3.0424643,1144.3,1142.0,0.7]
[1761580453989,0.65378283,1144.2,1142.1,0.86387347]
[1761580454288,0.65378283,1144.8,1142.9,0.64525012]
[1761580454487,0.65378283,1144.9,1142.8,0.64525012]
[1761580454687,0.65378283,1145.1,1142.7,0.64525012]
[1761580454984,0.65378283,1144.8,1142.6,0.64525012]
[1761580455186,0.65378283,1144.9,1142.7,0.64525012]
[1761580455388,0.65378283,1145.0,1142.6,0.64525012]
[1761580455788,0.65378283,1144.9,1142.6,0.64525012]
[1761580455985,0.65378283,1145.1,1142.5,0.64525012]
[1761580456387,0.65378283,1145.2,1142.5,0.64525012]
[1761580457584,0.65378283,1145.3,1142.4,0.64525012]
[1761580458385,0.65378283,1145.2,1142.5,0.64525012]
[1761580458590,0.65378283,1145.3,1142.4,0.64525012]
[1761580459887,0.65378283,1145.4,1142.4,0.64525012]
[1761580460388,0.65378283,1145.5,1142.4,0.64525012]
[1761580460787,0.65378283,1145.4,1142.4,0.64525012]
[1761580461289,0.65378283,1145.4,1142.3,0.64525012]
[1761580461492,0.65378283,1145.5,1142.3,0.64525012]
[1761580461690,0.65378283,1145.3,1142.2,0.64525012]
[1761580461889,0.65378283,1145.2,1142.2,0.64525012]
[1761580462390,0.65378283,1145.2,1142.1,0.64525012]
[1761580462594,0.65378283,1145.1,1142.2,0.64525012]
[1761580462792,0.65378283,1144.9,1142.3,0.64525012]
[1761580463289,0.65378283,1145.0,1142.3,0.64525012]
[1761580464393,0.65378283,1145.1,1142.3,0.64525012]
[1761580464792,0.65378283,1145.2,1142.2,0.64525012]
[1761580464997,0.65378283,1145.2,1142.3,0.667]
[1761580466497,0.65378283,1145.3,1142.3,0.667]
[1761580468294,0.65378283,1145.4,1142.3,0.667]
[1761580469899,0.65378283,1145.5,1142.3,0.667]
[1761580476111,0.65378283,1145.3,1142.3,0.667]
[1761580476311,0.65378283,1145.1,1142.3,0.667]
[1761580476511,0.65378283,1145.2,1142.3,0.667]
[1761580482518,0.65378283,1145.1,1142.3,0.667]
[1761580482817,0.65378283,1145.0,1142.4,0.911]
[1761580487115,0.65378283,1144.9,1142.4,0.911]
[1761580487314,0.65378283,1144.8,1142.4,0.911]
[1761580488220,0.65378283,1144.9,1142.4,0.911]
[1761580488416,0.65378283,1144.8,1142.4,0.911]
[1761580490419,0.65378283,1144.9,1142.4,0.911]
[1761580491825,0.65378283,1145.2,1142.4,0.911]
[1761580494625,0.65378283,1145.2,1142.3,0.667]
[1761580495028,0.65378283,1144.9,1142.3,0.667]
[1761580496326,0.65378283,1144.9,1142.4,0.884]
[1761580500032,0.65378283,1144.7,1142.4,0.884]
[1761580500234,0.65378283,1144.8,1142.4,0.884]
[1761580500829,0.65378283,1144.7,1142.4,0.884]
[1761580501034,0.65378283,1144.9,1142.4,0.884]
[1761580501333,0.65378283,1144.8,1142.4,0.884]
[1761580501633,0.65378283,1144.9,1142.4,0.884]
[1761580502333,0.65378283,1144.8,1142.4,0.884]
[1761580502930,0.65378283,1144.4,1142.5,0.697]
[1761580504330,0.65378283,1144.3,1142.5,0.697]
[1761580504531,0.65378283,1144.2,1142.5,0.697]
[1761580507333,0.65378283,1144.0,1142.5,0.697]
[1761580507832,0.65378283,1144.1,1142.5,0.697]
[1761580509533,0.65378283,1144.0,1142.5,0.697]
[1761580510637,0.65378283,1143.9,1142.5,0.697]
[1761580511136,0.65378283,1144.0,1142.5,0.697]
[1761580511540,0.65378283,1143.9,1142.5,0.697]
[1761580511837,0.65378283,1144.1,1142.5,0.697]
[1761580512039,0.65378283,1144.3,1142.5,0.697]
[1761580512936,0.65378283,1144.2,1142.5,0.697]
[1761580513437,0.65378283,1144.0,1142.5,0.697]
[1761580513738,0.65378283,1144.0,1142.6,0.766]
[1761580514436,0.65378283,1143.9,1142.6,0.766]
[1761580518848,0.65378283,1144.0,1142.6,0.766]
[1761580521246,0.65378283,1144.1,1142.6,0.766]
[1761580523050,0.65378283,1144.2,1142.6,0.766]
[1761580525245,0.65378283,1144.3,1142.6,0.766]
[1761580525446,0.65378283,1144.4,1142.6,0.766]
[1761580526946,0.65378283,1144.2,1142.6,1.41125012]
[1761580527646,0.65378283,1144.3,1142.6,1.41125012]
[1761580528046,0.65378283,1144.2,1142.6,1.41125012]
[1761580529749,0.65378283,1144.3,1142.6,1.41125012]
[1761580530248,0.65378283,1144.2,1142.6,1.41125012]
[1761580530647,0.65378283,1144.2,1142.7,0.64525012]
[1761580531252,0.65378283,1144.1,1142.6,1.41125012]
[1761580533154,0.65378283,1144.0,1142.6,1.41125012]
[1761580533350,0.65378283,1143.8,1142.6,0.766]
[1761580533850,0.65378283,1144.0,1142.6,0.766]
[1761580534052,0.65378283,1143.9,1142.6,0.766]
[1761580534654,0.65378283,1144.0,1142.6,0.766]
[1761580535855,0.65378283,1144.0,1142.3,0.64525012]
[1761580536356,0.65378283,1143.9,1142.3,0.64525012]
[1761580536953,0.65378283,1144.0,1142.3,0.64525012]
[1761580537358,0.65378283,1143.9,1142.3,0.64525012]
[1761580538055,0.65378283,1144.0,1142.3,0.64525012]
[1761580538355,0.65378283,1144.0,1142.4,0.792]
[1761580539760,0.65378283,1144.0,1142.5,0.971]
[1761580539959,0.65378283,1144.1,1142.5,0.971]
[1761580540462,0.65378283,1143.9,1142.6,0.64525012]
[1761580540762,0.65378283,1144.0,1142.7,0.64525012]
[1761580540962,0.65378283,1144.2,1142.8,0.64525012]
[1761580541359,0.6520171,1144.2,1142.9,0.65027508]
[1761580542363,0.6520171,1144.2,1142.8,0.65027508]
[1761580542764,0.6520171,1144.3,1142.9,0.65027508]
[1761580543470,0.6520171,1144.2,1142.9,0.65027508]
[1761580544070,0.6520171,1144.4,1142.8,0.65027508]
[1761580544268,0.6520171,1144.6,1143.0,0.65027508]
[1761580544470,0.86929651,1144.9,1143.0,0.65027508]
[1761580544471,0.6520171,1144.7,1143.2,0.65027508]
[1761580544671,0.6520171,1144.7,1143.3,0.65027508]
[1761580545372,0.6520171,1144.7,1143.2,0.65027508]
[1761580547368,0.6520171,1144.8,1143.2,0.65027508]
[1761580547768,0.6520171,1145.0,1143.0,0.65027508]
[1761580548171,0.6520171,1145.0,1142.9,0.65027508]
[1761580548473,0.6520171,1144.7,1142.9,0.65027508]
[1761580549171,0.86929651,1145.0,1142.6,0.86387347]
[1761580549372,0.65013884,1144.7,1142.9,0.64816016]
[1761580550672,0.65013884,1144.6,1142.9,0.64816016]
[1761580552576,0.65013884,1144.7,1142.9,0.64816016]
[1761580554580,0.65013884,1144.7,1142.6,0.64816016]
[1761580554878,0.65013884,1144.5,1142.6,0.64816016]
[1761580555379,0.65013884,1144.6,1142.6,0.64816016]
[1761580555879,0.65013884,1144.5,1142.6,0.64816016]
[1761580556380,0.65013884,1144.6,1142.7,0.64816016]
[1761580556577,0.65013884,1144.6,1142.8,0.64816016]
[1761580557481,0.65013884,1144.5,1142.8,0.64816016]
[1761580561887,0.65013884,1144.6,1142.8,0.64816016]
[1761580563184,0.65013884,1144.7,1142.8,0.64816016]
[1761580563485,0.65013884,1144.7,1142.9,0.64816016]
[1761580563987,0.65013884,1144.8,1143.0,0.64816016]
[1761580565486,0.65013884,1144.9,1143.0,0.64816016]
[1761580566889,0.65013884,1145.0,1143.1,0.64816016]
[1761580567287,0.65013884,1144.9,1143.1,0.64816016]
[1761580567692,0.65013884,1145.1,1143.3,0.64816016]
[1761580568289,0.65013884,1145.1,1143.2,0.64816016]
[1761580568592,0.65013884,1145.2,1143.3,0.64816016]
[1761580569996,0.65013884,1145.3,1143.2,0.64816016]
[1761580571996,0.65013884,1145.3,1143.3,0.64816016]
[1761580573395,0.65013884,1145.4,1143.3,0.64816016]
[1761580574196,0.65013884,1145.6,1143.6,0.64816016]
[1761580574392,0.65013884,1146.0,1143.8,0.64816016]
[1761580574597,0.65013884,1146.0,1143.2,0.64816016]
[1761580574796,0.65013884,1145.9,1143.3,0.64816016]
[1761580575494,0.65013884,1145.6,1143.3,0.64816016]
[1761580575698,0.65013884,1145.2,1142.7,0.64816016]
[1761580578796,0.65013884,1145.0,1142.8,0.64816016]
[1761580579594,0.65013884,1145.0,1142.7,0.64816016]
[1761580579796,0.15206567,1146.3,1142.8,0.64816016]
[1761580579797,0.65013884,1144.9,1142.8,0.64816016]
[1761580580101,0.65013884,1144.7,1142.9,0.64816016]
[1761580582400,0.65013884,1144.7,1143.0,1.046]
[1761580586301,0.65013884,1144.8,1143.0,1.046]
[1761580586996,0.65013884,1144.7,1143.0,1.046]
[1761580587401,0.65013884,1144.8,1143.0,1.046]
[1761580587602,0.65013884,1144.6,1143.0,1.046]
[1761580590400,0.65013884,1144.5,1143.0,1.046]
[1761580590601,0.65013884,1144.4,1143.0,1.046]
[1761580591002,0.65013884,1144.3,1143.0,1.046]
[1761580591701,0.65013884,1144.4,1143.0,1.046]
[1761580592200,0.65013884,1144.4,1143.1,0.899]
[1761580593404,0.65013884,1144.3,1143.1,0.899]
[1761580596309,0.65013884,1144.2,1143.1,0.899]
[1761580596910,0.65013884,1144.3,1143.1,0.899]
[1761580597308,0.65013884,1144.2,1143.1,0.899]
[1761580597805,0.65013884,1144.3,1143.1,0.899]
[1761580598611,0.65013884,1144.4,1143.1,0.899]
[1761580600312,0.65013884,1144.3,1143.1,0.899]
[1761580603315,0.65013884,1144.2,1143.1,0.899]
[1761580603511,0.65013884,1144.3,1143.1,0.899]
[1761580603711,0.65013884,1144.1,1143.1,0.899]
[1761580604516,0.65013884,1144.3,1143.1,0.899]
[1761580610421,0.65013884,1144.4,1143.1,0.899]
[1761580611421,0.65013884,1144.3,1143.1,0.899]
[1761580611620,0.65013884,1144.1,1143.1,0.899]
[1761580614324,0.65013884,1144.0,1143.1,0.899]
[1761580618330,0.65013884,1144.1,1143.1,0.899]
[1761580618530,0.65013884,1144.1,1143.0,1.046]
[1761580620431,0.65013884,1144.2,1143.0,1.046]
[1761580621232,0.65013884,1144.1,1143.0,1.046]
[1761580621731,0.65013884,1144.2,1143.0,1.046]
[1761580622327,0.65013884,1144.2,1143.1,1.062]
[1761580623333,0.65013884,1144.3,1143.1,1.062]
[1761580626229,0.65013884,1144.3,1143.2,0.885]
[1761580627834,0.65013884,1144.2,1143.2,0.885]
[1761580629034,0.65013884,1144.1,1143.2,0.885]
[1761580634433,0.65013884,1144.0,1143.2,0.885]
[1761580635536,0.65013884,1143.9,1143.2,0.885]
[1761580637539,0.86929651,1144.1,1143.2,0.885]
[1761580637838,0.65162232,1143.9,1143.2,0.885]
[1761580638834,0.65162232,1144.0,1143.2,0.885]
[1761580643441,0.65162232,1144.1,1143.2,0.885]
[1761580644438,0.65162232,1144.0,1143.2,0.885]
[1761580644938,0.86929651,1144.4,1143.2,0.885]
[1761580644939,0.65162232,1144.1,1143.2,0.885]
[1761580645443,0.65162232,1144.0,1143.2,0.885]
[1761580649551,0.86929651,1144.2,1143.2,0.885]
[1761580649746,0.65331449,1143.9,1143.2,0.885]
[1761580653344,0.65331449,1143.8,1143.2,0.885]
[1761580653546,0.65331449,1143.9,1143.2,0.885]
[1761580655652,0.65331449,1143.8,1143.2,0.885]
[1761580656149,0.65331449,1143.9,1143.2,0.885]
[1761580661256,0.65331449,1144.0,1142.9,0.703]
[1761580663258,0.65331449,1144.1,1142.9,0.703]
[1761580664060,0.65331449,1144.1,1143.0,0.769]
[1761580668559,0.65331449,1144.3,1143.0,1.42056983]
[1761580669557,0.65331449,1144.3,1143.0,0.769]
[1761580670660,0.65331449,1144.4,1143.0,1.42056983]
[1761580671162,0.65331449,1144.4,1143.0,0.769]
[1761580672563,0.65331449,1144.1,1143.0,1.42056983]
[1761580674164,0.65331449,1144.1,1143.0,0.769]
[1761580676360,0.65331449,1144.0,1143.0,0.769]
[1761580682370,0.65331449,1144.2,1143.0,0.769]
[1761580682770,0.65331449,1144.3,1143.0,0.769]
[1761580683669,0.65331449,1144.4,1143.0,0.769]
[1761580685572,0.65331449,1144.4,1143.0,1.42056983]
[1761580685973,0.15219336,1145.5,1143.0,0.769]
[1761580685974,0.65331449,1144.5,1143.0,0.769]
[1761580687973,0.65331449,1144.4,1143.0,0.769]
[1761580688774,0.65331449,1144.2,1143.0,1.42056983]
[1761580688976,0.65331449,1144.2,1143.0,0.65156983]
[1761580689169,0.65331449,1144.3,1142.9,1.35456983]
[1761580689874,0.65331449,1144.3,1143.0,0.65156983]
[1761580690070,0.65331449,1144.2,1143.0,0.65156983]
[1761580690374,0.65331449,1144.3,1142.9,1.35456983]
[1761580690575,0.65331449,1144.2,1142.9,1.35456983]
[1761580691176,0.65331449,1144.3,1142.9,1.35456983]
[1761580691873,0.65331449,1144.3,1143.0,1.038]
[1761580692076,0.65331449,1144.3,1143.0,1.68956983]
[1761580692976,0.65331449,1144.3,1143.0,1.038]
[1761580695875,0.65331449,1144.2,1143.0,1.038]
[1761580696679,0.65331449,1144.2,1143.0,1.68956983]
[1761580698078,0.65331449,1144.3,1143.0,1.68956983]
[1761580698473,0.65331449,1144.3,1143.0,1.038]
[1761580699476,0.65331449,1144.4,1143.0,1.038]
[1761580699880,0.65331449,1144.5,1143.0,1.038]
[1761580700176,0.65331449,1144.5,1143.0,1.68956983]
[1761580700379,0.65331449,1144.5,1143.2,0.65156983]
[1761580701981,0.65331449,1144.6,1143.3,0.65156983]
[1761580703381,0.65331449,1144.8,1143.4,0.65156983]
[1761580704881,0.65331449,1144.7,1143.4,0.65156983]
[1761580705181,0.65331449,1144.7,1143.3,0.65156983]
[1761580705879,0.65331449,1144.6,1143.2,0.65156983]
[1761580706784,0.65331449,1144.7,1143.1,0.65156983]
[1761580710185,0.86929651,1145.0,1143.0,1.038]
[1761580710186,0.65331449,1144.6,1143.2,0.65156983]
[1761580710891,0.65331449,1144.7,1143.1,0.65156983]
[1761580711088,0.65331449,1144.6,1143.0,1.038]
[1761580711388,0.65331449,1144.5,1143.0,1.038]
[1761580713494,0.65331449,1144.5,1143.0,1.68956983]
[1761580714996,0.65331449,1144.5,1143.1,1.052]
[1761580720498,0.65331449,1144.6,1143.1,1.052]
[1761580722097,0.65331449,1144.6,1143.2,0.708]
[1761580722801,0.65331449,1144.7,1143.2,0.708]
[1761580723001,0.65331449,1144.8,1143.2,0.708]
[1761580723200,0.65331449,1144.7,1143.2,0.708]
[1761580725100,0.65331449,1144.8,1143.2,0.708]
[1761580726099,0.65331449,1144.7,1143.2,0.708]
[1761580727099,0.65331449,1144.6,1143.2,0.708]
[1761580728104,0.65331449,1144.4,1143.2,0.708]
[1761580728902,0.65331449,1144.3,1143.2,1.35956983]
[1761580729099,0.65331449,1144.3,1143.2,0.708]
[1761580729403,0.65331449,1144.4,1143.2,0.708]
[1761580733602,0.65331449,1144.3,1143.2,1.35956983]
[1761580733802,0.65331449,1144.2,1143.2,0.708]
[1761580734201,0.65331449,1144.2,1143.1,0.65156983]
[1761580734401,0.65331449,1144.2,1143.2,0.666]
[1761580734605,0.65331449,1144.4,1143.2,0.666]
[1761580735204,0.65331449,1144.3,1143.2,0.666]
[1761580736608,0.65331449,1144.3,1143.3,0.774]
[1761580736808,0.65331449,1144.2,1143.3,0.774]
[1761580737712,0.65331449,1144.3,1143.3,0.774]
[1761580738210,0.65331449,1144.2,1143.3,0.774]
[1761580738711,0.65331449,1144.3,1143.3,0.774]
[1761580742110,0.65331449,1144.2,1143.3,0.774]
[1761580742311,0.65331449,1144.1,1143.3,0.774]
[1761580742712,0.65331449,1143.9,1143.3,0.774]
[1761580744910,0.65331449,1143.7,1143.3,0.774]
[1761580745114,0.65331449,1143.8,1143.3,0.774]
[1761580745413,0.65331449,1143.6,1143.3,0.774]
[1761580745611,0.65331449,1143.5,1143.3,0.774]
[1761580746015,0.65331449,1143.4,1143.3,0.774]
[1761580746212,0.65331449,1143.5,1143.3,0.774]
[1761580747815,0.65331449,1143.6,1143.3,0.774]
[1761580748315,0.65331449,1143.7,1143.3,0.774]
[1761580748818,0.65331449,1143.6,1143.3,0.774]
[1761580749218,0.65331449,1143.7,1143.3,0.774]
[1761580752220,0.65331449,1143.8,1143.3,0.774]
[1761580754421,0.65331449,1143.9,1143.3,0.774]
[1761580754718,0.65331449,1143.9,1143.2,0.666]
[1761580754920,0.65331449,1144.0,1143.2,0.666]
[1761580756321,0.65331449,1144.1,1143.2,0.666]
[1761580756821,0.65331449,1144.1,1143.2,1.306]
[1761580762024,0.65331449,1144.3,1143.2,1.306]
[1761580764427,0.65331449,1144.3,1143.2,0.64]
[1761580765722,0.65331449,1144.2,1143.2,0.64]
[1761580766925,0.65331449,1144.3,1143.2,0.64]
[1761580767123,0.65331449,1144.3,1143.3,0.813]
[1761580771123,0.65331449,1144.1,1143.3,0.813]
[1761580773323,0.65331449,1144.3,1143.3,0.813]
[1761580777030,0.65331449,1144.4,1143.3,0.813]
[1761580780231,0.65331449,1144.3,1143.3,0.813]
[1761580782736,0.65331449,1144.2,1143.3,0.813]
[1761580785338,0.65331449,1144.3,1143.3,0.813]
[1761580786041,0.65331449,1144.2,1143.3,0.813]
[1761580787542,0.65331449,1144.3,1143.3,0.813]
[1761580787746,0.65331449,1144.3,1143.4,0.754]
[1761580799257,0.65331449,1144.2,1143.4,0.754]
[1761580800764,0.65222089,1144.2,1143.4,0.754]
[1761580801662,0.86962786,1144.5,1143.4,0.754]
[1761580806264,1.302086,1145.3,1143.4,0.754]
[1761580806468,0.65104302,1144.8,1143.4,0.754]
[1761580807368,0.65104302,1144.9,1143.4,0.754]
[1761580807764,0.65104302,1144.8,1143.4,0.754]
[1761580807965,0.65104302,1145.0,1143.4,1.40209349]
[1761580809266,0.65104302,1145.0,1143.4,0.754]
[1761580810065,0.65104302,1144.9,1143.4,0.754]
[1761580811066,0.65104302,1145.3,1143.6,0.64809349]
[1761580811668,0.65104302,1145.2,1143.6,0.64809349]
[1761580812366,0.65104302,1145.3,1143.6,0.64809349]
[1761580812570,0.65104302,1145.1,1143.5,0.64809349]
[1761580812968,0.65104302,1145.2,1143.5,0.64809349]
[1761580813469,0.65104302,1145.1,1143.5,0.64809349]
[1761580813971,0.65104302,1145.1,1143.4,0.754]
[1761580813972,0.65104302,1145.3,1143.4,1.40209349]
[1761580814469,0.65104302,1145.4,1143.4,1.40209349]
[1761580814675,0.65104302,1145.4,1143.5,0.64809349]
[1761580815171,0.65104302,1145.5,1143.5,0.64809349]
[1761580815376,0.65104302,1145.6,1143.6,0.64809349]
[1761580816577,0.65104302,1145.6,1143.7,0.64809349]
[1761580816775,0.65104302,1145.6,1143.8,0.64809349]
[1761580816976,0.65104302,1145.6,1143.9,0.64809349]
[1761580817579,0.65104302,1145.7,1143.9,0.64809349]
[1761580817977,0.65104302,1145.6,1143.9,0.64809349]
[1761580818279,0.65104302,1145.7,1143.9,0.64809349]
[1761580819579,0.65104302,1145.9,1144.0,0.64809349]
[1761580819879,1.302086,1146.2,1144.0,0.64809349]
[1761580819880,0.65104302,1145.8,1144.0,0.64809349]
[1761580820376,0.65104302,1145.9,1144.1,0.771]
[1761580821480,0.65104302,1146.1,1144.1,0.771]
[1761580821778,0.65104302,1146.1,1144.2,0.875]
[1761580823681,0.65104302,1146.6,1144.2,0.875]
[1761580823982,2.1701434,1147.5,1144.2,0.875]
[1761580823983,0.65104302,1146.7,1144.2,0.875]
[1761580826382,0.65104302,1146.6,1144.2,0.875]
[1761580826579,0.65104302,1146.5,1144.2,0.875]
[1761580827080,0.65104302,1146.4,1144.2,0.875]
[1761580827780,0.65104302,1146.1,1144.2,0.875]
[1761580829285,0.65104302,1146.2,1144.2,0.875]
[1761580830383,0.65104302,1146.3,1144.2,0.875]
[1761580830883,0.65104302,1146.2,1144.2,0.875]
[1761580833587,0.65104302,1146.3,1144.2,0.875]
[1761580833790,0.65104302,1146.4,1144.2,0.875]
[1761580834287,0.65104302,1146.5,1144.2,0.875]
[1761580834690,0.65104302,1146.4,1144.2,0.875]
[1761580835588,0.65104302,1146.6,1144.2,0.875]
[1761580835791,0.65104302,1146.5,1144.2,0.875]
[1761580836888,0.65104302,1146.5,1144.3,0.745]
[1761580837189,0.65104302,1146.6,1144.3,0.745]
[1761580837790,0.65104302,1146.7,1144.3,0.745]
[1761580838393,0.65104302,1146.6,1144.3,0.745]
[1761580840294,0.65104302,1146.7,1144.3,0.745]
[1761580840991,0.65104302,1146.6,1144.3,0.745]
[1761580841390,0.65104302,1146.7,1144.3,0.745]
[1761580842289,0.65104302,1146.6,1144.3,0.745]
[1761580846898,0.65104302,1146.5,1144.3,0.745]
[1761580847998,0.65104302,1146.5,1144.2,0.875]
[1761580848193,0.65104302,1146.6,1144.2,0.875]
[1761580848999,0.65104302,1146.9,1144.2,0.875]
[1761580849200,0.65104302,1146.3,1144.2,0.875]
[1761580850200,0.65104302,1146.3,1144.3,0.945]
[1761580853598,0.65104302,1146.4,1144.3,0.945]
[1761580853796,0.86805736,1146.7,1144.3,0.945]
[1761580854000,0.64599932,1146.4,1144.3,0.945]
[1761580855402,0.64599932,1146.6,1144.3,0.945]
[1761580857004,0.64599932,1146.5,1144.3,0.945]
[1761580857704,0.64599932,1146.7,1144.3,0.945]
[1761580858701,0.64599932,1146.6,1144.3,0.945]
[1761580859004,0.64599932,1146.7,1144.3,0.945]
[1761580859212,0.64599932,1146.6,1144.3,0.945]
[1761580859506,0.86805736,1147.0,1144.3,0.945]
[1761580859802,0.64755916,1146.6,1144.3,0.945]
[1761580861309,0.64755916,1146.6,1144.3,1.5881125]
[1761580861707,0.64755916,1146.3,1144.3,1.5881125]
[1761580861912,0.64755916,1146.3,1144.3,0.945]
[1761580862113,0.64755916,1146.3,1144.3,1.5881125]
[1761580862309,0.64755916,1146.2,1144.3,1.5881125]
[1761580863109,0.64755916,1146.1,1144.4,0.6431125]
[1761580863314,0.64755916,1146.0,1144.3,0.945]
[1761580863511,0.64755916,1146.2,1144.3,0.945]
[1761580863810,0.64755916,1145.9,1144.3,0.945]
[1761580864013,0.64755916,1145.8,1144.3,0.945]
[1761580864712,0.64755916,1145.8,1144.4,1.007]
[1761580866019,0.64755916,1145.6,1144.4,1.007]
[1761580866920,0.64755916,1145.5,1144.4,1.007]
[1761580868023,0.64755916,1145.7,1144.4,1.007]
[1761580868224,1.302086,1146.2,1144.4,1.007]
[1761580868225,0.64755916,1145.9,1144.4,1.007]
[1761580868918,0.64755916,1146.1,1144.4,1.6501125]
[1761580870027,0.64755916,1146.1,1144.4,1.007]
[1761580870228,0.64755916,1146.1,1144.4,1.6501125]
[1761580870927,0.64755916,1146.0,1144.4,1.6501125]
[1761580871128,0.65002285,1146.1,1144.4,1.65226797]
[1761580871327,0.65002285,1146.0,1144.4,1.65226797]
[1761580872025,0.65002285,1145.8,1144.4,1.65226797]
[1761580872526,0.65002285,1145.8,1144.4,1.007]
[1761580872928,0.65002285,1145.6,1144.4,1.007]
[1761580876027,0.65002285,1145.7,1144.4,1.007]
[1761580876230,0.65002285,1145.8,1144.6,0.64526797]
[1761580876828,0.65002285,1145.8,1144.4,1.65226797]
[1761580877029,0.65002285,1145.7,1144.5,0.64526797]
[1761580877234,0.65002285,1145.6,1144.5,0.64526797]
[1761580877729,0.65002285,1145.7,1144.4,1.65226797]
[1761580880034,0.65002285,1145.6,1144.4,1.65226797]
[1761580880238,0.65002285,1145.9,1144.4,1.007]
[1761580880431,0.65002285,1145.9,1144.6,0.64526797]
[1761580881234,0.65002285,1146.0,1144.7,0.64526797]
[1761580881935,0.15199261,1147.2,1144.4,1.87112465]
[1761580881936,0.65002285,1145.9,1144.6,0.64526797]
[1761580882739,0.65002285,1145.8,1144.6,0.64526797]
[1761580883038,0.65002285,1145.7,1144.6,0.64526797]
[1761580883340,0.65002285,1145.7,1144.5,0.64526797]
[1761580883636,0.65002285,1145.7,1144.4,1.007]
[1761580884034,0.65002285,1145.6,1144.4,1.007]
[1761580886839,0.65002285,1145.6,1144.3,1.80912465]
[1761580887543,0.65002285,1145.7,1144.3,0.945]
[1761580887742,0.65002285,1145.9,1144.4,0.86412465]
[1761580889443,0.65002285,1145.9,1144.5,0.712]
[1761580890044,0.65002285,1146.0,1144.5,0.712]
[1761580890244,0.65002285,1146.1,1144.5,1.57612465]
[1761580891946,0.65002285,1146.0,1144.6,0.86412465]
[1761580892145,0.65002285,1146.0,1144.5,1.57612465]
[1761580894146,0.65002285,1145.9,1144.5,1.57612465]
[1761580894843,0.65002285,1145.9,1144.6,0.974]
[1761580895049,0.65002285,1145.9,1144.5,1.57612465]
[1761580896246,0.65002285,1146.0,1144.5,1.57612465]
[1761580898948,0.65002285,1146.0,1144.6,0.824]
[1761580899448,0.65002285,1145.9,1144.6,1.68812465]
[1761580899844,0.65002285,1145.9,1144.6,0.824]
[1761580900348,0.65002285,1146.2,1144.6,0.824]
[1761580901250,0.65002285,1146.3,1144.6,0.824]
[1761580901549,0.65002285,1146.2,1144.6,0.824]
[1761580902044,0.65002285,1146.3,1144.6,0.824]
[1761580902246,0.65002285,1146.6,1144.6,0.824]
[1761580903946,0.65002285,1146.7,1144.6,0.824]
[1761580904451,0.65002285,1146.6,1144.6,0.824]
[1761580904653,0.65002285,1146.2,1144.7,0.86412465]
[1761580904950,0.65002285,1146.3,1144.8,0.86412465]
[1761580906151,0.65002285,1146.4,1144.8,0.86412465]
[1761580908957,0.65002285,1146.4,1144.7,0.86412465]
[1761580910258,0.65002285,1146.3,1144.7,0.86412465]
[1761580911457,0.65002285,1146.4,1144.6,0.824]
[1761580911660,0.65002285,1146.2,1144.6,0.824]
[1761580913261,0.65002285,1146.3,1144.6,0.824]
[1761580918968,0.65002285,1146.2,1144.6,0.824]
[1761580919563,0.65002285,1146.2,1144.7,0.734]
[1761580920969,0.65002285,1146.3,1144.7,0.734]
[1761580921266,0.65002285,1146.2,1144.7,0.734]
[1761580922366,0.65002285,1146.3,1144.7,0.734]
[1761580925776,0.65002285,1146.4,1144.7,0.734]
[1761580925973,0.65002285,1146.5,1144.7,0.734]
[1761580926173,0.65002285,1146.5,1144.7,1.59812465]
[1761580926474,0.65002285,1146.5,1144.7,0.734]
[1761580927275,0.65002285,1146.4,1144.7,1.59812465]
[1761580928078,0.65002285,1146.3,1144.7,0.734]
[1761580928379,0.65002285,1146.4,1144.7,0.734]
[1761580931982,0.65002285,1146.5,1144.7,0.734]
[1761580933382,0.65002285,1146.5,1144.8,0.86412465]
[1761580933880,0.65002285,1146.5,1144.7,1.59812465]
[1761580934085,0.65002285,1146.5,1144.8,0.86412465]
[1761580934282,0.65002285,1146.4,1144.8,0.86412465]
[1761580934484,0.65002285,1146.5,1144.7,1.59812465]
[1761580937086,0.65002285,1146.5,1144.8,0.86412465]
[1761580937283,0.65002285,1146.5,1144.7,1.59812465]
[1761580937884,0.6511079,1146.5,1144.7,1.59812465]
[1761580938090,0.6511079,1146.6,1144.7,1.59812465]
[1761580939085,0.6511079,1146.5,1144.8,0.86412465]
[1761580939489,0.15193819,1147.6,1144.7,0.734]
[1761580939490,0.6511079,1146.4,1144.9,0.86412465]
[1761580939689,0.6511079,1146.4,1144.8,0.86412465]
[1761580940086,0.6511079,1146.4,1144.7,0.734]
[1761580942489,0.6511079,1146.5,1144.8,1.026]
[1761580944294,0.6511079,1146.4,1144.8,1.026]
[1761580944493,0.6511079,1146.4,1144.8,1.89012465]
[1761580945490,0.6511079,1146.4,1144.8,1.026]
[1761580945991,0.6511079,1146.3,1144.8,1.026]
[1761580946192,0.6511079,1146.1,1144.8,1.026]
[1761580948597,0.6511079,1146.2,1144.8,1.026]
[1761580949497,0.6511079,1146.3,1144.8,1.026]
[1761580949797,0.6511079,1146.2,1144.8,1.026]
[1761580949997,0.6511079,1146.0,1144.8,1.026]
[1761580950196,0.6511079,1146.1,1144.8,1.026]
[1761580950394,0.6511079,1146.0,1144.8,1.026]
[1761580950594,0.6511079,1145.9,1144.8,1.026]
[1761580950793,0.6511079,1145.8,1144.8,1.026]
[1761580950999,0.6511079,1145.7,1144.8,1.026]